{"text_format":"1","workbook":"xlsx","n_sheets":7,"sheets":["Megrendelőlap","TIG","Keretszerződés","Számlakérő","Octosys","Szolgáltatás adminisztráció","Legördülő"],"not_rendered":{"charts":0,"images":1,"macros":1,"external_links":0,"defined_names":13,"comments":0,"pivot_tables":0},"unopened":[],"bounds":{"document_bytes":16777216,"sheet_cells":100000,"rows_first":2000,"rows_last":500,"rows_between":2000,"halvings":0,"cell_chars":16384,"cell_head_chars":4096},"cells_cut":0,"cells_raw":0,"read":"whole","date_system":"1900"}

{"sheet":"Megrendelőlap","index":0,"n_rows":128,"n_cols":5,"rows_kept":128,"cut":false,"hidden":false,"merged":[[17,2,17,4],[18,2,18,4],[12,2,12,4],[13,2,13,4],[14,2,14,4],[15,2,15,4],[16,2,16,4],[88,2,88,4],[127,2,127,3],[117,2,118,2],[117,3,118,3],[119,2,119,3],[89,2,89,3],[112,2,112,3],[121,1,121,4],[1,1,1,4],[24,2,24,4],[39,1,39,4],[45,1,45,4],[19,1,22,1],[42,2,42,3],[41,2,41,3],[43,2,43,3],[26,1,29,4],[6,2,6,4],[7,2,7,4],[8,2,8,4],[19,2,22,4],[9,2,9,4],[10,2,10,4],[11,2,11,4]]}
[]
[null,"     Corvinus Career & Business Festival "]
[null,null,"2024. április 24-25."]
[null,null,"Megrendelőlap"]
[]
[]
[null,"Megrendelő (kiállító cég) neve: "]
[null,"Megrendelő székhelye: "]
[null,"Cégjegyzék szám:"]
[null,"Megrendelő adószáma: "]
[null,"Bankszámlaszám:"]
[null,"Megrendelő nevében aláírásra jogosult neve: "]
[null,"Megrendelő nevében aláírásra jogosult titulusa: "]
[null,"Elektronikus számlabefogadó e-mail cím:"]
[null,"Számla postázási címe:"]
[null,"Megrendelő adatvédelmi tisztviselő elérhetősége:"]
[null,"Kapcsolattartó neve: "]
[null,"Kapcsolattartó e-mail címe: "]
[null,"Kapcsolattartó telefonszáma: "]
[null,"Egyéb fontos közlemény, pl. számlabontás, számlán feltüntetendő adat (pl. PO szám):"]
[]
[]
[]
[]
[null,"Alulírott   ",{"$f":"IF(ISBLANK(C7), \"\", C7)","v":""}]
[null,null,"képviseletében megrendelem a "]
[null,"Budapesti Corvinus Egyetem (Cím: 1093 Budapest, Fővám tér 8.; adószám: 19156972-2-44; statisztikai szám: 19156972 8542 599 01; intézményi azonosító: FI43814; bankszámlaszáma: OTP BANK Nyrt. 11784009-22229896-00000000; (IBAN): HU92 11784009 22229896 00000000; SWIFT (BIC) kód: OTPVHUHB; képviselő: Dr. Anthony Radev elnök; aláírásra jogosult: Baranyai Dávid Vállalati és Intézményi Kapcsolatok vezető, mint a Vállalati és Intézményi Kapcsolatok kötelezettségvállalója; jóváírást fogadó témaszám: PPESE0501K) által biztosított alábbi szolgáltatás(oka)t:"]
[]
[]
[]
[]
[null,"Stand kiválasztása"]
[]
[null,"Standméret","Nettó ár (Ft)","Kiválasztás"]
[null,"3 négyzetméter",730000,4,4]
[null,"6 négyzetméter",1450000,4]
[null,"8 négyzetméter",1935000,5]
[null,"12 négyzetméter",2900000,3]
[]
[null,"Standtípus és standhely és megjeleníteni kívánt név kiválasztása"]
[]
[null,"Standtípus:","Épített egységstand"]
[null,"Preferált standhely:"]
[null,"Kommunikációban megjeleníteni kívánt név:"]
[]
[null,"Kiegészítő termékek kiválasztása"]
[]
[null,"Információs pult","Nettó egységár (Ft)","db","Nettó ár (Ft)"]
[null,"Nyitott, polc nélkül (100x50x100 cm)",19200,null,{"$f":"IF(ISBLANK(D49),\"\",D49*C49)","v":""}]
[null,"Nyitott, polc nélkül, fríztáblával",30300,null,{"$f":"IF(ISBLANK(D50),\"\",D50*C50)","v":""}]
[null,"Nyitott, polccal (100x50x100 cm)",21800,null,""]
[null,"Zárható, polccal (100x50x100 cm)",24700,null,""]
[null,"Íves",33900,null,""]
[null,"Egyedi dekoráció (pult elejére)",29100,null,""]
[null,"Egyedi dekoráció (pult elejére és oldalaira)",58100,null,""]
[null,"Egyedi dekoráció (íves pult elejére)",43600,null,""]
[null,"Fal","Nettó egységár (Ft)","db","Nettó ár (Ft)"]
[null,"Fehér fal, dekoráció nélkül (250x100 cm)",11700,null,{"$f":"IF(ISBLANK(D58),\"\",D58*C58)","v":""}]
[null,"Dekorált fal",84300,null,{"$f":"IF(ISBLANK(D59),\"\",D59*C59)","v":""}]
[null,"Vitrin","Nettó egységár (Ft)","db","Nettó ár (Ft)"]
[null,"100x50x250 cm – 2 db polc",53300,null,{"$f":"IF(ISBLANK(D61),\"\",D61*C61)","v":""}]
[null,"50x50x250 cm – 2 db polc",48400,null,{"$f":"IF(ISBLANK(D62),\"\",D62*C62)","v":""}]
[null,"Extra üvegpolc",8500,null,""]
[null,"Üveges pultvitrin (100x50x100 cm) [zárható]",35100,null,""]
[null,"Asztal","Nettó egységár (Ft)","db","Nettó ár (Ft)"]
[null,"Tárgyalóasztal (67x67 cm)",7800,null,""]
[null,"Táblaasztal (160x80 cm)",9500,null,""]
[null,"Bárasztal",9700,null,""]
[null,"Fa dohányzóasztal",20900,null,""]
[null,"Ülőhelyek","Nettó egységár (Ft)","db","Nettó ár (Ft)"]
[null,"Fémvázas tárgyalószék (fekete, műbőr)",5400,null,""]
[null,"Bárszék (fehér)",18200,null,""]
[null,"Textilbőr fotel (fekete, fehér)",26700,null,""]
[null,"Textilbőr kanapé (fekete, fehér) [2 személy]",60500,null,""]
[null,"Egyéb termékek","Nettó egységár (Ft)","db","Nettó ár (Ft)"]
[null,"Szekrény (100x50x200 cm) [zárható]",35100,null,""]
[null,"Álló fogas",6100,null,""]
[null,"Octanorm (beépített) fogas",4900,null,""]
[null,"Álló prospektustartó",13600,null,""]
[null,"Papírkosár",1300,null,""]
[null,"Hűtőszekrény",33400,null,""]
[null,"Spot lámpa",4900,null,""]
[null,"Karos lámpa",13800,null,""]
[null,"HQI reflektor [fehér izzóval]",18200,null,""]
[null,"3-as dugalj",2500,null,""]
[null,"Extra fríztábla (100x30 cm) [táblatartóval]",14100,null,""]
[null,"Egyedi felirat fríztáblára",20600,null,""]
[null,"Szőnyegezés nem alapszínnel [/nm]",3900,null,""]
[null,"Szőnyegezés színe ","Nincs egyedi kérésem"]
[null,"Extra áramszolgáltatás ","Nem kérek extra áramot",null,{"$f":"IF(C90=\"nem kérek extra áramot\", 0, IF(C90=\"4 kW 1*230V/16A\", 13000, IF(C90=\"5 kW 1*230V/20A\", 21000, IF(C90=\"10 kW 3*230V/ 16A\", 33000, IF(C90=\"20 kW 3*230V/32A\", 55000, IF(C90=\"45 kW 3*230V/63A\", 80000, 0))))))","v":0}]
[]
[]
[null,"Kiegészítő szolgáltatások","Nettó egységár (Ft)","db","Nettó ár (Ft)"]
[null,"Ebéd [/adag]",8950,null,{"$f":"IF(ISBLANK(D94),\"\",D94*C94)","v":""}]
[null,"Tárgyalósáv [fél óra]",16500,null,""]
[null,"Vállalati előadás (20 perc)",95000]
[null,"Kijelző megjelenés [max. 20s klippel]",110000,null,""]
[null,"Hírlevél megjelenés",39000,null,""]
[null,"eDM hirdetés",52000,null,""]
[null,"eDM megszerkesztése",26000,null,""]
[null,"Infopultnál szóróanyagok kihelyezése (200 db)",77000,null,""]
[null,"Facebook event post",11000,null,""]
[null,"Helyszíni megjelenés","Nettó egységár (Ft)","db","Nettó ár (Ft)"]
[null,"Plakát [A1] -10 napra",38500,null,""]
[null,"Plakát [A2] - 10 napra",33000,null,""]
[null,"Plakát [A3] - 10 napra",27500,null,""]
[null,"Roll-up kihelyezés a Főépület bejáratánál",38500,null,""]
[null,"Pohármatrica a büfék poharain (100 db/csomag)",88000,null,""]
[null,"Molinó kihelyezés [Aula, 200x500 cm] - max. 4 db",275000,null,""]
[null,"Molinó kihelyezés [Aula, 200x700 cm] - max. 4 db",330000,null,""]
[null,"Molinó kihelyezés [Aula, 600x300 cm] - max. 4 db",385000,null,""]
[]
[null,"Kedvezmény","Early Bird (feb 15-ig)","Early Bird (feb 15-ig)",{"$f":"IF(C113=\"Early Bird (feb 15-ig)\",0.1, IF(C113=\"Loyalty (2023 őszi CCBF részvétel esetén)\",0.15, IF(C113=\"Alumni kedvezmény\",0.1,IF(C113=\"Hallgatói ajánlás\",0.1,0))))","v":0.1}]
[]
[null,"Stand összesen",{"$f":"(IF(E35=4, C35, IF(E35=1, C36, IF(E35=2, C37, IF(E35=3, C38, \"\")))))*(1-E113)","v":657000},"+ ÁFA"]
[null,"Kiegészítő termékek összesen",{"$f":"SUM(E49:E56,E58:E59,E61:E64,E66:E69,E71:E74,E76:E88)","v":0},"+ ÁFA"]
[null,"Kiegészítő szolgáltatások összesen",{"$f":"SUM(E94:E102,E104:E111)","v":0},"+ ÁFA"]
[null,"Mindösszesen",{"$f":"SUM(C115:C117)","v":657000},"+ ÁFA"]
[]
[null,"Azaz",{"$f":"Ftbetu(C118,0,0)","v":{"$error":"#NAME?"}},null,"forint + ÁFA"]
[]
[null,"Aláírásommal a fentnevezett cég jogos képviseletében igazolom a Corvinus Career & Business Festival rendezvényen való részvételi szándékunkat és egyúttal vállalom a fent közölt határidők betartását. Az aláírással vállaljuk a számla kiállításától számított 15 napon belül történő kiegyenlítését, egyúttal igazoljuk, hogy a Corvinus Career & Business Festival rendezvényen való megjelenésre vonatkozó feltételeket (keretszerződés és mellékletei) megismertük, magunkra nézve kötelezőnek tekintjük."]
[]
[null,"Budapest, 2024.__.__."]
[null,null,null," "]
[]
[]
[null,null,"Cégszerű aláírás (pecséttel)"]

{"sheet":"TIG","index":1,"n_rows":46,"n_cols":9,"rows_kept":46,"cut":false,"hidden":false,"merged":[[42,1,42,2],[43,1,43,2],[45,1,45,2],[45,5,45,7],[42,5,42,8],[43,5,43,8],[27,1,27,7],[31,2,31,3],[32,1,32,3],[40,1,40,2],[41,1,41,2],[29,5,31,7],[41,5,41,8],[16,1,16,2],[20,2,20,7],[21,2,21,7],[22,2,22,7],[23,1,24,1],[23,2,24,7],[16,4,16,7],[13,1,13,2],[14,1,14,2],[15,1,15,2],[13,4,13,7],[14,4,14,7],[15,4,15,7],[2,2,2,3],[7,1,7,8],[9,1,9,8],[0,2,0,7],[1,2,1,7],[2,5,2,7]]}
[null,"Szervezeti egység neve: ","Vállalati és Intézményi Kapcsolatok"]
[null,"Költséghely: ","PPESE0500K - Karrier Expo tavasz"]
[null,"Ügyintéző neve:","Bálint-Nagy Cristina",null,"Telefonszáma:","+36305670576"]
[]
[]
[]
[]
[null,"BUDAPESTI CORVINUS EGYETEM"]
[]
[null,"TELJESÍTÉS IGAZOLÁS"]
[]
[]
[]
[null,"Megbízó / Megrendelő neve:",null,null,"Megbízott / Vállalkozó neve:"]
[null,{"$f":"Megrendelőlap!C25","v":""},null,null,"Budapesti Corvinus Egyetem"]
[null,{"$f":"Megrendelőlap!C8","v":0},null,null,"1093 Budapest, Fővám tér 8."]
[null,{"$f":"Megrendelőlap!C10","v":0}]
[]
[]
[]
[null,"Érvényes kötelezettségvállalás száma:","PPESE0500K - Karrier Expo tavasz"]
[null,"Szerződés, megrendelés tárgya:","Corvinus Career & Business Festival - Karrier Expo tavasz - 2024"]
[null,"Teljesítés időpontja:","2024.04.24-25."]
[null,"Indoklás, egyéb megjegyzés:","Megrendelőlap alapján"]
[]
[]
[]
[null,"A Megbízott / Vállalkozó a tárgy szerinti teljesítést a szerződésben, megrendelőben foglalt minőségben elvégezte."]
[]
[null,null,null,null,null,{"$f":"Megrendelőlap!C120","v":{"$error":"#NAME?"}}]
[]
[null,"Ez alapján a Megbízott jogosult ",{"$f":"Megrendelőlap!C118","v":657000},null,"+ ÁFA, azaz",null,null,null,"Forint"]
[null,"+ ÁFA összegű számla kiállítására és benyújtására."]
[]
[]
[null,"Dátum: 2024.04.25."]
[]
[]
[]
[]
[null,"A teljesítést igazolom:"]
[null,"Megbízó / Megrendelő:",null,null,null,"Megbízott / Vállalkozó:"]
[null,"Név: ",null,null,null,"Név: Baranyai Dávid"]
[null,"Aláírás:",null,null,null,"Aláírás:"]
[]
[null,"P.h.",null,null,null,"P.h."]

{"sheet":"Keretszerződés","index":2,"n_rows":123,"n_cols":10,"rows_kept":123,"cut":false,"hidden":false,"merged":[[1,1,1,11],[11,4,11,10],[12,4,12,10],[3,1,3,5],[10,1,10,5],[3,10,3,11],[28,3,28,11],[13,4,13,10],[14,4,14,10],[15,4,15,10],[16,4,16,10],[3,8,3,9],[19,1,19,10],[6,1,6,11],[7,1,7,11],[8,1,8,11],[112,3,112,5],[114,3,114,5],[112,9,112,10],[118,3,118,5],[120,3,120,5],[121,3,121,5],[122,3,122,5],[118,8,118,10],[120,8,120,10],[121,8,121,10],[122,8,122,10],[30,3,30,11],[36,3,36,11],[37,3,37,11],[38,3,38,11],[32,2,32,11],[35,2,35,11],[11,1,11,3],[12,1,12,3],[13,1,13,3],[33,3,33,10],[21,1,21,3],[22,1,25,11],[27,2,27,11],[29,3,29,11],[14,1,14,3],[15,1,15,3],[16,1,16,3],[17,1,17,7],[46,2,46,11],[47,3,47,11],[48,3,48,11],[49,3,49,11],[67,2,67,11],[44,3,44,11],[39,3,39,11],[40,3,40,11],[41,4,41,11],[42,4,42,11],[43,4,43,11],[56,3,56,11],[57,3,57,11],[51,2,51,11],[78,4,78,11],[80,3,80,11],[70,4,70,11],[71,4,71,11],[52,3,52,11],[53,3,53,11],[54,3,54,11],[55,3,55,11],[61,3,61,11],[62,3,62,11],[63,3,63,11],[58,4,58,11],[59,4,59,11],[60,4,60,11],[68,3,68,11],[69,4,69,11],[104,3,104,11],[106,1,106,11],[108,1,108,11],[109,1,109,11],[98,3,98,11],[99,3,99,11],[101,2,101,11],[102,3,102,11],[103,3,103,11],[93,3,93,11],[94,3,94,11],[95,3,95,11],[96,3,96,6],[97,3,97,11],[96,7,96,11],[90,2,90,11],[91,3,91,11],[64,3,64,11],[92,3,92,11],[65,3,65,11],[87,3,87,11],[88,3,88,11],[84,4,84,11],[85,4,85,11],[86,3,86,11],[81,3,81,11],[82,4,82,11],[83,4,83,11],[72,4,72,11],[74,3,74,11],[75,4,75,11],[76,4,76,11],[77,4,77,11]]}
[]
[null,"SZOLGÁLTATÁSI KERETSZERZŐDÉS"]
[]
[null,"Iktatószám: GMJ/….............../2024",null,null,null,null,null,null,"SAP-szám: "]
[]
[]
[null,"amely létrejött egyrészről"]
[null,"A Budapesti Corvinus Egyetem (székhely: 1093 Budapest, Fővám tér 8., adószám: 19156972-2-44, statisztikai szám: 19156972 8542 599 01, intézményi azonosító: FI 43814, bankszámlaszáma: OTP Bank Nyrt. 11784009-22229896-00000000, kötelezettségvállalással érintett szervezeti egység: Vállalati és Intézményi Kapcsolatok, aláírásra jogosult: Baranyai Dávid, VIK vezető)"]
[null,"mint szolgáltató – a továbbiakban: Szolgáltató – "]
[]
[null,"másrészről a"]
[null,"Név:",null,null,{"$f":"Megrendelőlap!C7","v":0}]
[null,"Székhely:",null,null,{"$f":"Megrendelőlap!C8","v":0}]
[null,"Cégjegyzék szám:",null,null,{"$f":"Megrendelőlap!C9","v":0}]
[null,"Adószám:",null,null,{"$f":"Megrendelőlap!C10","v":0}]
[null,"Bankszámlaszám:",null,null,{"$f":"Megrendelőlap!C11","v":0}]
[null,"Képviseli:",null,null,{"$f":"Megrendelőlap!C12","v":0}]
[null,"mint megrendelő – a továbbiakban: Megrendelő – "]
[]
[null," – Szolgáltató és Megrendelő együttesen a továbbiakban: Felek – között az alulírott napon és helyen az alábbi feltételek szerint."]
[]
[null,"Preambulum"]
[null,"A Szolgáltató a hallgatók munkába állásának, munkaerő-piaci informálódásának és integrációjának érdekében hagyományosan minden évben megrendezi a munkaadók és munkavállalók találkozásának lehetőséget biztosító állásbörzéit. Jelen szolgáltatási keretszerződés azért jön létre, hogy a Szolgáltató által minden év tavaszán és őszén megrendezésre kerülő Corvinus Career & Business Festival rendezvényeken történő részvétel feltételeit meghatározza és Szolgáltató részéről rendelkezésre állási kötelezettséget teremtsen Megrendelő felé."]
[]
[]
[]
[]
[null,"1.","A keretszerződés tárgya, időtartama."]
[null,null,"1.1","Szolgáltató vállalja a Corvinus Career & Business Festival rendezvényeken a jelen keretszerződés hatálya alatt kötött eseti megrendelések szerinti szolgáltatások teljesítését. A jelen keretszerződés alapján teljesíthető szolgáltatások felsorolását, árát, a kedvezmények mértékét, feltételeit, a szolgáltatási határidőket az eseti megrendelések tartalmazzák. Az eseti megrendelések a jelen keretszerződéssel együtt érvényesek."]
[null,null,"1.2","Felek rögzítik, hogy Szolgáltató teljesítést csak a jelen keretszerződésben meghatározottak szerint megkötött eseti megrendelések alapján végez, a jelen keretszerződés aláírása a Szolgáltató oldalán csak rendelkezésre állási kötelezettséget jelent, de konkrét szolgáltatási kötelezettséget nem teremt.\n"]
[null,null,"1.3","Jelen keretszerződés az aláírás napjától tartó határozatlan időtartamra jön létre és Felek bármelyike jogosult azt 30 napos felmondási határidővel felmondani úgy, hogy a felmondás időpontja nem lehet későbbi, mint az aktuális eseti megrendelésben meghatározott teljesítési határidőt megelőző 21. nap. Amennyiben bármelyik fél felmondása ezen időtartamon belülre esik, a felmondás a teljesítési határidő utolsó napját követő nap."]
[]
[null,"2.","A teljesítés helye és ideje"]
[null,null,null,"A teljesítés helye az Felek által az eseti megrendelésekben megjelölt magyarországi teljesítési cím és időpont."]
[]
[null,"3.","Ellenérték, fizetési feltételek"]
[null,null,"3.1","Szolgáltató az eseti megrendelésekben meghatározott árakon vállalja a jelen keretszerződés tárgyát képező szolgáltatások teljesítését. Az aktuális szolgáltatások árait és a kedvezmények mértékét a jelen szerződés 1. sz. mellékletét képező Megrendelőlap tartalmazza. A Szolgáltató minden, a jelen keretszerződés hatálya alá tartozó rendezvényt megelőzően köteles a mindenkori Megrendelőlapot a Megrendelőnek eljuttatni."]
[null,null,"3.2","Megrendelő a szolgáltatások ellenértékét a Megrendelőlapon rögzített határidőben, egy összegben köteles a Szolgáltató OTP Bank Nyrt.-nél vezetett 11784009-22229896-00000000 számú számlájára történő átutalással megfizetni."]
[null,null,"3.3","Szolgáltató végszámlát a Megrendelő vagy igazolt képviselője által a rendezvény napján aláírt teljesítésigazolás alapján állítja ki. Amennyiben Megrendelő a rendezvényt követő 3 napon belül nem él kifogással a teljesített szolgáltatásokkal kapcsolatban, aláírt teljesítésigazolás hiányában is teljesítettnek tekinti Szolgáltató a Megrendelő által megrendelt és Szolgáltató által visszaigazolt szolgáltatásokat és azt követően a rendezvényen igénybe vett a megrendelésen felül igénybe vett szolgáltatásokat, és a szolgáltatási díjat kiszámlázza."]
[null,null,"3.4","Megrendelő késedelmes fizetése esetén Szolgáltató a Polgári Törvénykönyvről szóló 2013. évi V. törvény (Ptk.) szerinti késedelmi kamat számlázására jogosult. A Felek kijelentik, hogy a 2016. évi IX. törvény szerinti behajtási költségátalány alkalmazására egy naptári éven belül egy alkalommal van lehetőség az adott évben esedékessé váló kifizetések tekintetében. A behajtási költségátalány alkalmazására jelen szerződés hatálya alatt mindkét fél jogosult a Ptk. 6:59. § (2) bekezdés alapján."]
[null,null,"3.5","Megrendelő tudomásul veszi, hogy amennyiben Megrendelő a visszaigazolt eseti megrendelést lemondja, a Szolgáltató meghiúsulási kötbérre jogosult, melynek összege a lemondó nyilatkozat Szolgáltató általi kézhezvétele és a teljesítés időpontja közötti időszak függvényében:"]
[null,null,null,"a.","a teljesítés időpontját megelőző 22. napig a szolgáltatási díj 0 %-a"]
[null,null,null,"b.","a teljesítés időpontját megelőző 8-21 nap között: a szolgáltatási díj 40 %-a"]
[null,null,null,"c.","a teljesítés időpontját megelőző 7 napon belül a szolgáltatási díj 100 %"]
[null,null,"3.6","Amennyiben Megrendelő a visszaigazolt jelentkezés ellenére nem jelenik meg a Rendezvényen, a visszaigazolt szolgáltatási díj 100 %-ban kiszámlázásra kerül. "]
[]
[null,"4.","Az eseti megrendelés szabályai"]
[null,null,"4.1","A Megrendelő részvételi szándéka esetén köteles az aktuális Megrendelő lapon szereplő határidőig a Szolgáltató kapcsolattartójának jelezni standfoglalási szándékát. Szolgáltató kizárólag a rendelkezésére álló standhelyek erejéig köteles a jelen szerződésben vállalt kötelezettségeiért helytállni. Szolgáltató a foglalási igényeket beérkezési sorrendben elégíti ki."]
[null,null,"4.2","A standfoglalást a Szolgáltató e-mailben visszaigazolja. Megrendelő a visszaigazolást követő három (3) munkanapon belül a Megrendelőlapot szkennelt formában a karrierexpo@uni-corvinus.hu e-mail címre köteles eljuttatni, az eredeti példányt pedig a rendezvény napján, a Szolgáltató képviselőjének átadni. A stand elfoglalásának feltétele a Megrendelőlap eredeti példányának átadása. "]
[null,null,"4.3","Az eseti megrendelés akkor válik hatályossá, ha azt a Szolgáltató a 6. pontban meghatározott kapcsolattartási rendelkezések szerint visszaigazolja. A visszaigazolt megrendelés a jelentkezési határidő lejártáig díjmentesen, tetszőleges számban módosítható. A jelentkezési határidőt követően megrendelést, illetve megrendelés módosítási igényt a Szolgáltató nem köteles elfogadni. "]
[]
[null,"5.","A Felek jogai és kötelezettségei"]
[null,null,"5.1","Szolgáltató jogosult a Megrendelő által lefoglalt stando(ko)n a foglalást feloldani, amennyiben az előzetes standfoglalást követő három (3) munkanapon belül Megrendelő nem tesz eleget a Megrendelőlap megküldésére vonatkozó kötelezettségének. "]
[null,null,"5.2","Megrendelő tudomásul veszi, hogy a rendezvényen a Szolgáltató által biztosított kiállítási (stand)helyen csak saját, leány- és anyavállalatának, cégcsoportja más tagjának állásajánlatát, programját, rendezvényét, termékét vagy szolgáltatását népszerűsítheti, jelenítheti meg nyomtatott vagy elektronikus formában. Megrendelő minden a fentiektől eltérő tervezett tevékenységre (pl. ajándéksorsolás, kérdőívezés, értékesítés, értékesítési célú személyes adatgyűjtés stb.), előzetesen köteles írásban engedélyt kérni Szolgáltatótól."]
[null,null,"5.3","Megrendelő vállalja, hogy a rendezvény megvalósítását tekintve lényeges kérdésekben állásfoglalását a Szolgáltató kérésére a jelen szerződés kapcsolattartásra vonatkozó rendelkezéseinek figyelembevételével legfeljebb kettő (2) munkanapon belül közli."]
[null,null,"5.4","Megrendelő tudomásul veszi, hogy jelentkezési és leadási határidők túllépése esetén a Szolgáltató a rendezvényen való részvétel lehetőségét nem tudja garantálni."]
[null,null,"5.5","Megrendelő vállalja, hogy a Rendezvény standjait és azok felszerelését, valamint a rendezvény helyszínének egyéb berendezési tárgyait rendeltetésszerűen használja, és hogy a nem rendeltetésszerű használatból eredő kárt a Szolgáltató felé megtéríti a rendezvényt követően felvett jegyzőkönyv alapján."]
[null,null,"5.6","Megrendelő vállalja, hogy az alábbi, standokra vonatkozó használati szabályokat betartja:"]
[null,null,null,"a.","az installációt és a betétlemezeket megfúrni, abban bármilyen sérülést okozni tilos"]
[null,null,null,"b.","a betétlemezekre folyékony, és habosított tükörragasztóval ráragasztani tilos"]
[null,null,null,"c.","a betétlemezekre fóliázni csak a Szolgáltató előzetes írásbeli engedélyével szabad."]
[null,null,null,"Az okozott károkért a Szolgáltató jogosult az elem teljes értékét leszámlázni a Megrendelő felé."]
[null,null,"5.7","Megrendelő kijelenti, hogy minden, a rendezvényen történő részvételre vonatkozó, a rendezvény szervezői által megállapított szabályt betart. E szabályok megsértésével okozott károkért felelősséggel tartozik. Megrendelő a stand átadás-átvételekor köteles a Szolgáltató Tűzvédelmi Szabályzatának egy példányát átvenni és aláírásával igazolni, hogy az abban foglaltak betartására kötelezettséget vállal."]
[null,null,"5.8","Megrendelő jelen szerződés aláírásával hozzájárul nevének és logójának a Szolgáltató rendezvénnyel kapcsolatos minden nyomtatott és elektronikus hirdetésében való feltüntetéséhez."]
[null,null,"5.9","Megrendelő köteles az általa megrendelt standot legkésőbb a rendezvény megkezdése előtt kettő órával elfoglalni és azt felszerelési tárgyaival együtt, írásbeli átadás-átvételi jegyzőkönyv aláírása mellett átvenni. Az átadás-átvételi jegyzőkönyv aláírásával a résztvevő igazolja, hogy az általa megrendelt szolgáltatások hiánytalanul a rendelkezésére állnak."]
[null,null,"5.10","Megrendelő tudomásul veszi, hogy a Rendezvényre behozott saját eszközeiért, ingóságaiért a Szolgáltató semmilyen formában nem vállal felelősséget"]
[]
[null,"6.","Kapcsolattartás"]
[null,null,"6.1","Kapcsolattartó személy a Megrendelő részéről:"]
[null,null,null,"Neve /beosztása:",{"$f":"Megrendelőlap!C17","v":0}]
[null,null,null,"Levelezési címe:",{"$f":"Megrendelőlap!C15","v":0}]
[null,null,null,"E-mail címe:",{"$f":"Megrendelőlap!C18","v":0}]
[null,null,null,"Tel.száma:",{"$f":"Megrendelőlap!C19","v":0}]
[]
[null,null,null,"Kapcsolattartó személy a Szolgáltató részéről:"]
[null,null,null,"Neve /beosztása:","Bálint-Nagy Cristina"]
[null,null,null,"Levelezési címe:","1093 Budapest, Fővám tér 8."]
[null,null,null,"E-mail címe:","expo@uni-corvinus.hu"]
[null,null,null,"Tel.száma:",36305670576]
[]
[null,null,"6.2","Jelen szerződéssel kapcsolatos valamennyi értesítést és nyilatkozatot írásban a megjelölt kapcsolattartónak az e célra megadott címére kell teljesíteni. A kapcsolattartó személyében bekövetkezett változásról a Felek haladéktalanul tájékoztatják egymást. Ennek elmaradásáért Felek felelősséggel tartoznak. A kapcsolattartó személyekben történt változás nem minősül szerződésmódosításnak."]
[null,null,"6.3","Az értesítés közöltnek tekinthető:"]
[null,null,null,"a.","személyes, kézbesítő vagy futár általi kézbesítés esetén az aláírással igazolt átadás időpontjában,"]
[null,null,null,"b.","tértivevényes levél a tértivevényen szereplő átvételi időpontban, vagy akkor, ha az „nem kereste” vagy az „átvételt megtagadta” jelzéssel érkezik vissza,"]
[null,null,null,"c.","ajánlott levél a postára adás napját követő 5. napon,"]
[null,null,null,"d.","e-mail, amikor a címzett kapcsolattartó a levél olvasását elektronikusan visszaigazolta, ennek elmulasztása esetén az elküldést követő harmadik munkanapon (kivéve a távollétről való értesítés esetét)"]
[null,null,"6.4","E-mailen nem lehet érvényesen közölni a szerződés megszüntetésére, a teljesítés igazolására, jogról való lemondásra, jog elismerésére, kötelezettség vállalására, vagy egyezségkötésre vonatkozó nyilatkozatokat."]
[null,null,"6.5","Sürgős döntést, intézkedést igénylő esetben az értesítést rövid úton (elsősorban telefonon és/vagy e-mailben) is meg kell tenni, majd azt írásban az akadály elhárulását követően megerősíteni."]
[null,null,"6.6","A Megrendelőlapot, annak esetleges módosításait Megrendelő elektronikus úton, a Megrendelő által kért formátumban, indokolt esetben szkennelve küldi meg Szolgáltató expo@uni-corvinus.hu e-mail címére. Az elektronikus levél abban az időpontban tekintendő közöltnek, amikor a címzett kapcsolattartó a levél olvasását elektronikusan visszaigazolta, ennek elmulasztása esetén az elküldést követő harmadik munkanapon (kivéve a távollétről való értesítés esetét). A Felek közötti levelezés nyelve: magyar."]
[null,null,null," "]
[null,"7.","Adatkezelés"]
[null,null,"7.1","Felek a kapcsolattartáshoz szükséges mértékben átadják és átveszik egymás munkatársainak személyes adatait – név, munkahelyi e-mail cím, munkahelyi telefonszám –, ezek tekintetében az adatkezelés jogalapja a GDPR 6. cikk (1) bekezdés f) pontja. Szerződő Felek rögzítik, hogy a kapcsolattartás tekintetében az adatok átadását megelőzően érdekmérlegelési tesztet folytattak le. Szerződő Felek rögzítik, hogy az adatok kezelése a munkavégzéshez feltétlenül szükséges mértékben történik, ezért az érintettek jelen pont szerinti, munkavégzéssel kapcsolatos személyes adatai védelméhez fűződő joga nem élvez elsőbbséget a Szerződő Felek jogos érdekével szemben."]
[null,null,"7.2","Felek rögzítik, hogy a kapcsolattartói adatokat a jelen szerződés 6. pontja tartalmazza, e körben Felek további adatszolgáltatást nem teljesítenek."]
[null,null,"7.3","Felek rögzítik, hogy a kapcsolattartói adatokat kizárólag a jelen szerződésbe foglaltak teljesítése érdekében kezelik, ezen adatokat más nyilvántartásaitól elkülönítetten tartják nyilván, és harmadik személy részére nem biztosítanak hozzáférést az átvett adatokhoz."]
[null,null,"7.4","Az adatkezelés időtartama a szerződésből fakadó jogok és kötelezettségek elévülési idejéhez igazodik. A Felek vállalják, hogy a kapcsolattartói adatok megváltozása esetén a korábbi kapcsolattartók adatait törlik."]
[null,null,"7.5","Felek megállapodnak abban, hogy az érintettek számára biztosítják, hogy jogaik védelme érdekében bármelyikük adatvédelmi tisztviselőjéhez fordulhassanak. Szerződő Felek megállapodnak abban az adatkezeléssel kapcsolatos panaszok kivizsgálásába egymás adatvédelmi tisztviselőjét minden esetben bevonják."]
[null,null,null,"a. Megrendelő adatvédelmi tisztviselő elérhetősége: ",null,null,null,{"$f":"Megrendelőlap!C16","v":0}]
[null,null,null,"b. Szolgáltató adatvédelmi tisztviselő/adatvédelmi megbízott elérhetősége: adatvedelem@uni-corvinus.hu"]
[null,null,"7.6","Felek biztosítják, hogy az érintettek jogaik gyakorlása körében bármelyikükhöz fordulhassanak a 7.5. pontban meghatározott elérhetőségen. Amennyiben az érintett kérelme olyan Szerződő Félhez érkezik, amely a kérelem teljesítésére nem illetékes, úgy Szerződő Felek vállalják, hogy a kérelmet egymáshoz 3 (három) munkanapon belül eljuttatják."]
[null,null,"7.7","Felek megállapodnak abban, hogy az érintettek részére a GDPR 13. cikke szerinti tájékoztatást az a Fél adja meg, amely az érintett munkáltatója. A tájékoztatást a másik Fél részére történő adatátadás esetén oly módon kell megadni, hogy az adatot átvevő Fél a GDPR 14. cikk (5) bekezdés a) pontja alapján mentesülhessen az ismételt tájékoztatási kötelezettsége alól."]
[]
[null,"8.","Egyéb rendelkezések"]
[null,null,"8.1","A Felek tudomásul veszik, hogy – az információs önrendelkezési jogról és információszabadságról szóló 2011. évi CXII. törvény (a továbbiakban: Infotv.) alapján – érvényesen nem tagadhatják meg a szerződés lényeges tartalmáról a tájékoztatást üzleti titok címén. A Felek az adatkezelések során az Infotv.-nek, az egyéb vonatkozó jogszabályoknak, és a Nemzeti Adatvédelmi és Információszabadság Hatóság (a továbbiakban: NAIH) tevékenysége során kialakult adatvédelmi gyakorlatnak megfelelően járnak el. Alkalmazzák és figyelembe veszik az Európai Parlament és a Tanács 2016/679 Rendeletében („Általános Adatvédelmi Rendelet” vagy „GDPR”) megfogalmazottakat is. A szerződésben megadott kapcsolattartó személyes adatait csak a jelen szerződés teljesítése során és a szerződés hatálya, illetve megőrzésének ideje (5 év) alatt kezelik."]
[null,null,"8.2","A Szerződő Felek megállapodnak abban, hogy jelen szerződés során az esetlegesen keletkező jogvitáikat békés úton, egyeztetéssel rendezik. Amennyiben 15 napon belül nem tudnak megegyezni a vitás kérdésekben, abban az esetben kikötik és magukra nézve kötelezőnek tartják jelen szerződésből származó jogviták eldöntésében – Szolgáltató választása szerint – a polgári perrendtartásról szóló 2016. évi CXXX. törvény 28. § (1) bekezdés c) pontja alapján az ügyletkötés helye szerinti bíróság illetékességét."]
[null,null,"8.3","Jelen szerződésben nem szabályozott kérdésekben a Szerződő Felek a Ptk. rendelkezéseit tekintik irányadónak."]
[]
[null,"Jelen szerződést a Felek, annak átolvasása és megértése után, tartalmának kölcsönös elfogadásával két (2) példányban írják alá. Az aláíró a szerződő Fél képviseletére, a jelen keretszerződés aláírására jogosult. Az aláírt keretszerződés példányaiból mindkét Felet egy (1) eredeti példány illeti meg."]
[]
[null,"Mellékletek:"]
[null,"1.      Megrendelőlap"]
[]
[]
[null,null,null,"Kelt: Budapest, 2024. …............................",null,null,null,null,"Kelt: ","…............................................................."]
[]
[null,null,null,"A szolgáltató részéről:"]
[]
[]
[]
[null,null,null,"….......................................................",null,null,null,null,"…......................................................."]
[]
[null,null,null,"Baranyai Dávid",null,null,null,null,{"$f":"Megrendelőlap!C12","v":0}]
[null,null,null,"VIK vezető",null,null,null,null,{"$f":"Megrendelőlap!C13","v":0}]
[null,null,null,"Budapesti Corvinus Egyetem",null,null,null,null,{"$f":"Megrendelőlap!C7","v":0}]

{"sheet":"Számlakérő","index":3,"n_rows":56,"n_cols":11,"rows_kept":56,"cut":false,"hidden":true,"merged":[[55,4,55,6],[55,7,55,10],[43,1,43,2],[44,1,44,2],[45,1,45,2],[46,1,46,6],[54,4,54,6],[54,7,54,10],[42,1,42,2],[27,1,28,2],[27,3,28,10],[33,1,33,2],[34,1,34,2],[35,1,35,2],[36,1,36,2],[37,1,37,2],[38,1,38,2],[39,1,39,2],[40,1,40,2],[41,1,41,2],[24,1,24,2],[24,3,24,10],[25,1,25,2],[25,3,25,10],[26,1,26,2],[26,3,26,10],[18,1,18,2],[18,3,18,10],[19,1,19,2],[19,3,19,10],[23,1,23,2],[23,3,23,10],[17,1,17,2],[17,3,17,10],[0,2,0,7],[0,9,0,10],[1,2,1,3],[1,5,1,7],[2,2,2,3],[2,5,2,7],[7,1,7,10],[10,1,10,10],[11,1,11,10],[16,1,16,2],[16,3,16,10]]}
[null,"Szervezeti egység neve: ","Karrier Expo Ősz",null,null,null,null,null,null,"GI beérkezés dátuma, iktatószáma:"]
[null,"Költséghely (témaszám): ","PPESE0501K",null,"Igénylő ügyintézőjének email címe:","szilvia.arva-toth@uni-corvinus.hu "]
[null,"Igénylő ügyintézőjének neve:","Árva-Tóth Szilvia ",null,"Telefonszáma:"]
[]
[]
[]
[]
[null,"BUDAPESTI CORVINUS EGYETEM"]
[]
[]
[null,"SZÁMLAKÉRŐ"]
[null,"A CORVINUS által tejesített szolgáltatás, termék megrendelés teljesítéséről történő számla készítéséhez"]
[]
[]
[]
[]
[null,"Vevő neve:",null,{"$f":"Megrendelőlap!C7","v":0}]
[null,"Vevő számlázási címe:",null,{"$f":"Megrendelőlap!C8","v":0}]
[null,"Elektronikus számlát befogadó e-mail cím:",null,{"$f":"Megrendelőlap!C14","v":0}]
[null,"Vevő adószáma / adóazonosító jele:",null,{"$f":"Megrendelőlap!C10","v":0}]
[]
[]
[]
[null,"Teljesítés időpontja/ időszak:",null,"2023. 10. 25-26."]
[null,"Fizetési határidő:",null,"15 nap"]
[null,"Számla kiállítás pénzneme (pld.: Ft, EURO, stb.):",null,"Ft (HUF)"]
[null,"Szerződés, megrendelő (PO) száma:",null,{"$f":"Keretszerződés!K4","v":0}]
[null,"Egyéb adatok , egyéb hivatkozás:",null,{"$f":"Megrendelőlap!C20","v":0}]
[]
[]
[]
[]
[]
[null,"Szolgáltatás/termék megnevezése",null,"Költséghely","Mennyiség","Mennyiségi egység","Egységár","Értéke ÁFA nélkül                    (menny. * egységár)","ÁFA %","ÁFA értéke","Értéke ÁFÁ-val (Bruttó)"]
[null,"Standhely biztosítása",null,"PPESE0501K",1,"darab",{"$f":"Megrendelőlap!C118-H36","v":657000},{"$f":"+G35*E35","v":657000},27,{"$f":"+(I35/100)*H35","v":177390},{"$f":"+J35+H35","v":834390}]
[null,"Étkezés",null,"PPESE0501K",{"$f":"Megrendelőlap!D94","v":0},"darab",7800,{"$f":"+G36*E36","v":0},27,{"$f":"+(I36/100)*H36","v":0},{"$f":"+J36+H36","v":0}]
[]
[]
[]
[]
[]
[]
[]
[]
[]
[]
[null,"ÖSSZESEN:",null,null,null,null,null,{"$f":"SUM(H35:H46)","v":657000},null,{"$f":"SUM(J35:J46)","v":177390},{"$f":"SUM(K35:K46)","v":834390}]
[]
[]
[]
[null,"Dátum: 2023.10.26."]
[]
[]
[]
[null,null,null,null,"Kötelezettségvállaló aláírása: "]
[null,null,null,null,"Kötelezettségvállaló neve: ",null,null,"Baranyai Dávid"]

{"sheet":"Octosys","index":4,"n_rows":3,"n_cols":46,"rows_kept":3,"cut":false,"hidden":true,"merged":[[0,35,0,45],[0,17,0,20],[0,6,0,11],[0,0,0,5],[0,12,0,16],[0,22,0,25],[0,26,0,29],[0,30,0,34]]}
["Alap információ",null,null,null,null,null,"Alapstandhoz tartozó kiegészítők",null,null,null,null,null,"Információs pult",null,null,null,null,"+Kasírozással",null,null,null,"Fal","Vitrin",null,null,null,"Asztal",null,null,null,"Szék",null,null,null,null,"Egyéb standkiegészítők"]
["Standszám ","Cégnév","Felirat","Standtípus (sziget)","m2","m*m","Zárt infopult polc nélkül","Spotlámpa","3-as elosztó","Papírkosár","Szőnyegezés színe (alap: Antra)","Áram\nkW","Nyitott, polc nélkül (100x50x100 cm)","Nyitott, polc nélkül, fríztáblával","Nyitott, polccal (100x50x100 cm)","Zárható, polccal (100x50x100 cm)","Íves","Egyedi dekoráció (pult elejére)","Egyedi dekoráció (pult elejére és oldalaira)","Egyedi dekoráció (íves pult elejére)","Dekorált fal","Fehér fal, dekoráció nélkül (250x100 cm)","100x50x250 cm – 2 db polc","50x50x250 cm – 2 db polc","Extra üvegpolc","Üveges pultvitrin (100x50x100 cm) [zárható]","Tárgyalóasztal (67x67 cm)","Táblaasztal (160x80 cm)","Bárasztal","Fa dohányzóasztal","Támlás szék (fehér)","Fémvázas tárgyalószék (fekete, műbőr)","Bárszék (fehér)","Textilbőr fotel (fekete, fehér)","Textilbőr kanapé (fekete, fehér) [2 személy]","Szekrény (100x50x200 cm) [zárható]","Álló fogas","Octanorm (beépített) fogas","Álló prospektustartó (A típus)","Álló prospektustartó (B típus)","Hűtőszekrény","Extra spot lámpa","Karos lámpa","HQI reflektor [fehér izzóval]","Extra fríztábla (100x30 cm) [táblatartóval]","Egyedi felirat fríztáblára"]
[null,{"$f":"Megrendelőlap!C7","v":0},{"$f":"Megrendelőlap!C44","v":0},{"$f":"Megrendelőlap!C42","v":"Épített egységstand"},{"$f":"IF(Megrendelőlap!E35=4, 3, IF(Megrendelőlap!E35=1, 6, IF(Megrendelőlap!E35=2, 8, IF(Megrendelőlap!E35=3, 12, 0))))","v":3},{"$f":"IF(E3=3, \"1x3\", IF(E3=6, \"2x3\", IF(E3=8, \"2x4\", IF(E3=12, \"3x4\", 0))))","v":"1x3"},{"$f":"IF($D$3=\"Épített egységstand\", 1, 0)","v":1},{"$f":"IF($D$3=\"Épített egységstand\", \"A standhoz tartozó db-szám szerint\", 0)","v":"A standhoz tartozó db-szám szerint"},{"$f":"1+Megrendelőlap!D85","v":1},{"$f":"1+Megrendelőlap!D80","v":1},{"$f":"Megrendelőlap!C89","v":"Nincs egyedi kérésem"},{"$f":"IF(Megrendelőlap!C90=\"Nem kérek extra áramot\", 2, IF(Megrendelőlap!C90=\"4 kW 1*230V/16A\", 4, IF(Megrendelőlap!C90=\"5 kW 1*230V/20A\", 5, IF(Megrendelőlap!C90=\"10 kW 3*230V/ 16A\", 10, IF(Megrendelőlap!C90=\"20 kW 3*230V/32A\", 20, IF(Megrendelőlap!C90=\"45 kW 3*230V/63A\", 45, 0))))))","v":2},{"$f":"Megrendelőlap!D49","v":0},{"$f":"Megrendelőlap!D50","v":0},{"$f":"Megrendelőlap!D51","v":0},{"$f":"Megrendelőlap!D52","v":0},{"$f":"Megrendelőlap!D53","v":0},{"$f":"Megrendelőlap!D54","v":0},{"$f":"Megrendelőlap!D55","v":0},{"$f":"Megrendelőlap!D56","v":0},{"$f":"Megrendelőlap!D59","v":0},{"$f":"Megrendelőlap!D58","v":0},{"$f":"Megrendelőlap!D61","v":0},{"$f":"Megrendelőlap!D62","v":0},{"$f":"Megrendelőlap!D63","v":0},{"$f":"Megrendelőlap!D64","v":0},{"$f":"Megrendelőlap!D66","v":0},{"$f":"Megrendelőlap!D67","v":0},{"$f":"Megrendelőlap!D68","v":0},{"$f":"Megrendelőlap!D69","v":0},{"$f":"Megrendelőlap!#REF!","v":{"$error":"#REF!"}},{"$f":"Megrendelőlap!D71","v":0},{"$f":"Megrendelőlap!D72","v":0},{"$f":"Megrendelőlap!D73","v":0},{"$f":"Megrendelőlap!D74","v":0},{"$f":"Megrendelőlap!D76","v":0},{"$f":"Megrendelőlap!D77","v":0},{"$f":"Megrendelőlap!D78","v":0},{"$f":"Megrendelőlap!D79","v":0},{"$f":"Megrendelőlap!#REF!","v":{"$error":"#REF!"}},{"$f":"Megrendelőlap!D81","v":0},{"$f":"Megrendelőlap!D82","v":0},{"$f":"Megrendelőlap!D83","v":0},{"$f":"Megrendelőlap!D84","v":0},{"$f":"Megrendelőlap!D86","v":0},{"$f":"Megrendelőlap!D87","v":0}]

{"sheet":"Szolgáltatás adminisztráció","index":5,"n_rows":3,"n_cols":22,"rows_kept":3,"cut":false,"hidden":true,"merged":[[0,1,0,4],[0,5,0,16],[0,17,0,21],[0,0,1,0]]}
["Cég","Octosys",null,null,null,"Grafikai, tartalmi igény",null,null,null,null,null,null,null,null,null,null,null,"Egyéb"]
[null,"Egyedi dekoráció (pult elejére)","Egyedi dekoráció (pult elejére és oldalaira)","Egyedi dekoráció (íves pult elejére)","Egyedi felirat fríztáblára","Kijelző megjelenés [max. 20s klippel]","Hírlevél megjelenés","eDM hirdetés","eDM megszerkesztése","Facebook event post","Plakát [A1]","Plakát [A2]","Plakát [A3]","Pohármatrica a büfék poharain (100 db/csomag)","Molinó kihelyezés [Aula, 200x500 cm]","Molinó kihelyezés [Aula, 200x700 cm]","Molinó kihelyezés [Aula, 600x300 cm]","Raktárparcella [8 négyzetméter]","Tárgyalósáv [/fél óra]","Ebéd [/fő/nap]","Infopultnál szóróanyagok kihelyezése (/200 db)","Roll-up kihelyezés a Főépület bejáratánál"]
[{"$f":"Megrendelőlap!C7","v":0},{"$f":"Megrendelőlap!D54","v":0},{"$f":"Megrendelőlap!D55","v":0},{"$f":"Megrendelőlap!D56","v":0},{"$f":"Megrendelőlap!D87","v":0},{"$f":"Megrendelőlap!D97","v":0},{"$f":"Megrendelőlap!D98","v":0},{"$f":"Megrendelőlap!D99","v":0},{"$f":"Megrendelőlap!D100","v":0},{"$f":"Megrendelőlap!D102","v":0},{"$f":"Megrendelőlap!D104","v":0},{"$f":"Megrendelőlap!D105","v":0},{"$f":"Megrendelőlap!D106","v":0},{"$f":"Megrendelőlap!D108","v":0},{"$f":"Megrendelőlap!D109","v":0},{"$f":"Megrendelőlap!D110","v":0},{"$f":"Megrendelőlap!D111","v":0},{"$f":"Megrendelőlap!#REF!","v":{"$error":"#REF!"}},{"$f":"Megrendelőlap!D95","v":0},{"$f":"Megrendelőlap!D94","v":0},{"$f":"Megrendelőlap!D101","v":0},{"$f":"Megrendelőlap!D107","v":0}]

{"sheet":"Legördülő","index":6,"n_rows":25,"n_cols":12,"rows_kept":25,"cut":false,"hidden":true,"merged":[]}
["Standtípus",null,null,"áram",null,null,null,"kedvezmény",null,null,null,"Szőnyeg"]
["Épített egységstand",null,null,"Nem kérek extra áramot",null,null,null,"Nem vagyok jogosult kedvezményre",null,null,null,"Nincs egyedi kérésem"]
["Saját egyedi stand",null,null,"4 kW 1*230V/16A",null,null,null,"Early Bird (feb 15-ig)",null,null,null,"Grijs"]
[null,null,null,"5 kW 1*230V/20A",null,null,null,"Loyalty (2023 őszi CCBF részvétel esetén)",null,null,null,"Marine"]
[null,null," ","10 kW 3*230V/ 16A",null,null,null,"Alumni kedvezmény",null,null,null,"Dk blauw"]
[null,null,null,"20 kW 3*230V/32A",null,null,null,"Hallgatói ajánlás",null,null,null,"Blauw"]
[null,null,null,"45 kW 3*230V/63A",null,null,null,null,null,null,null,"Broen"]
[null,null,null,null,null,null,null,null,null,null,null,"Gras Groen"]
[null,null,null,null,null,null,null,null,null,null,null,"Choko"]
[null,null,null,null,null,null,null,null,null,null,null,"Beige"]
[null,null,null,null,null,null,null,null,null,null,null,"Champagne"]
[null,null,null,null,null,null,null,null,null,null,null,"Dk rood"]
[null,null,null,null,null,null,null,null,null,null,null,"Vermillon"]
[null,null,null,null,null,null,null,null,null,null,null,"Bordeaux"]
[null,null,null,null,null,null,null,null,null,null,null,"Negro"]
[null,null,null,null,null,null,null,null,null,null,null,"Amarillo citrom"]
[null,null,null,null,null,null,null,null,null,null,null,"Naranja"]
[null,null,null,null,null,null,null,null,null,null,null,"Whisky"]
[null,null,null,null,null,null,null,null,null,null,null,"Azul"]
[null,null,null,null,null,null,null,null,null,null,null,"Violet"]
[null,null,null,null,null,null,null,null,null,null,null,"Lila"]
[null,null,null,null,null,null,null,null,null,null,null,"Verde"]
[null,null,null,null,null,null,null,null,null,null,null,"Blanco"]
[null,null,null,null,null,null,null,null,null,null,null,"Bleu roy"]
[null,null,null,null,null,null,null,null,null,null,null,"Rojo"]